lending/lending_fUSD_20240522
["ID","MTS","AMOUNT","RATE_DAILY","PERIOD"]
[327735662,1716406242760,-500.0,0.00017225,2]
[327735663,1716406242770,-500.0,0.00017225,2]
[327735664,1716406242780,-500.0,0.00017225,2]
[327735665,1716406242790,-500.0,0.00017225,2]
[327735666,1716406242800,-500.0,0.00017225,2]
[327735667,1716406242812,-500.0,0.00017225,2]
[327735670,1716406242822,-500.0,0.00017225,2]
[327735673,1716406242833,-500.0,0.00017225,2]
[327735678,1716406242843,-500.0,0.00017225,2]
[327735681,1716406242853,-500.0,0.00017225,2]
[327735684,1716406242864,-500.0,0.00017225,2]
[327735686,1716406242874,-500.0,0.00017225,2]
[327735687,1716406242884,-500.0,0.00017225,2]
[327735688,1716406242893,-500.0,0.00017225,2]
[327735689,1716406242903,-500.0,0.00017225,2]
[327735690,1716406242912,-500.0,0.00017225,2]
[327735691,1716406242922,-500.0,0.00017225,2]
[327735692,1716406242931,-500.0,0.00017225,2]
[327735693,1716406242940,-500.0,0.00017225,2]
[327735694,1716406242949,-500.0,0.00017225,2]
[327735695,1716406242959,-500.0,0.00017225,2]
[327735696,1716406242968,-500.0,0.00017225,2]
[327735697,1716406242977,-500.0,0.00017225,2]
[327735698,1716406242987,-500.0,0.00017225,2]
[327735699,1716406242996,-500.0,0.00017225,2]
[327735700,1716406243005,-500.0,0.00017225,2]
[327735701,1716406243015,-500.0,0.00017225,2]
[327735702,1716406243024,-500.0,0.00017225,2]
[327735703,1716406243034,-500.0,0.00017225,2]
[327735704,1716406243043,-500.0,0.00017225,2]
[327735705,1716406243054,-500.0,0.00017225,2]
[327735706,1716406243063,-500.0,0.00017225,2]
[327735707,1716406243072,-500.0,0.00017225,2]
[327735708,1716406243081,-500.0,0.00017225,2]
[327735709,1716406243091,-500.0,0.00017225,2]
[327735710,1716406243100,-500.0,0.00017225,2]
[327735711,1716406243110,-500.0,0.00017225,2]
[327735712,1716406243121,-500.0,0.00017225,2]
[327735713,1716406243132,-500.0,0.00017225,2]
[327735714,1716406243141,-500.0,0.00017225,2]
[327735715,1716406243153,-500.0,0.00017225,2]
[327735716,1716406243164,-500.0,0.00017225,2]
[327735717,1716406243176,-500.0,0.00017225,2]
[327735718,1716406243187,-500.0,0.00017225,2]
[327735719,1716406243198,-500.0,0.00017225,2]
[327735720,1716406243209,-500.0,0.00017225,2]
[327735721,1716406243220,-500.0,0.00017225,2]
[327735722,1716406243230,-500.0,0.00017225,2]
[327735723,1716406243241,-500.0,0.00017225,2]
[327735724,1716406243251,-500.0,0.00017225,2]
[327735725,1716406243262,-500.0,0.00017225,2]
[327735726,1716406243273,-500.0,0.00017225,2]
[327735728,1716406243283,-500.0,0.00017225,2]
[327735730,1716406243294,-500.0,0.00017225,2]
[327735732,1716406243307,-500.0,0.00017225,2]
[327735735,1716406243317,-500.0,0.00017225,2]
[327735737,1716406243328,-500.0,0.00017225,2]
[327735739,1716406243339,-500.0,0.00017225,2]
[327735740,1716406243350,-500.0,0.00017225,2]
[327735742,1716406243366,-500.0,0.00017225,2]
[327735744,1716406243377,-500.0,0.00017225,2]
[327735746,1716406243387,-500.0,0.00017225,2]
[327735748,1716406243398,-500.0,0.00017225,2]
[327735750,1716406243408,-500.0,0.00017225,2]
[327735753,1716406243418,-500.0,0.00017225,2]
[327735755,1716406243428,-500.0,0.00017225,2]
[327735757,1716406243438,-500.0,0.00017225,2]
[327735758,1716406243451,-500.0,0.00017225,2]
[327735759,1716406243461,-500.0,0.00017225,2]
[327735760,1716406243471,-500.0,0.00017225,2]
[327735761,1716406243481,-500.0,0.00017225,2]
[327735762,1716406243490,-500.0,0.00017225,2]
[327735763,1716406243500,-500.0,0.00017225,2]
[327735764,1716406243510,-500.0,0.00017225,2]
[327735765,1716406243520,-500.0,0.00017225,2]
[327735766,1716406243530,-500.0,0.00017225,2]
[327735767,1716406243540,-500.0,0.00017225,2]
[327735768,1716406243550,-500.0,0.00017225,2]
[327735769,1716406243562,-166.34413531,0.00017257,2]
[327735770,1716406243573,-267.5233578,0.00017257,2]
[327735771,1716406243583,-156.29271724,0.00017258,2]
[327735772,1716406243593,-1572.640258,0.0001726,2]
[327735773,1716406243603,-200.0,0.00017265,2]
[327735774,1716406243612,-168.69,0.00017317,2]
[327735775,1716406243622,-840.0,0.0001735,2]
[327735776,1716406243631,-167.0,0.00017399,2]
[327735777,1716406243641,-774.93431909,0.00017614,2]
[327735778,1716406243651,-383.6,0.00017658,2]
[327735779,1716406243661,-500.0,0.00017735,2]
[327735780,1716406243670,-500.0,0.00017735,2]
[327735781,1716406243679,-500.0,0.00017735,2]
[327735782,1716406243689,-500.0,0.00017735,2]
[327735783,1716406243699,-500.0,0.00017735,2]
[327735784,1716406243709,-500.0,0.00017735,2]
[327735785,1716406243719,-500.0,0.00017735,2]
[327735786,1716406243728,-500.0,0.00017735,2]
[327735787,1716406243738,-500.0,0.00017735,2]
[327735788,1716406243748,-500.0,0.00017735,2]
[327735789,1716406243758,-500.0,0.00017735,2]
[327735790,1716406243768,-500.0,0.00017735,2]
[327735791,1716406243777,-500.0,0.00017735,2]
[327735792,1716406243787,-500.0,0.00017735,2]
[327735793,1716406243797,-500.0,0.00017735,2]
[327735794,1716406243808,-500.0,0.00017735,2]
[327735795,1716406243818,-500.0,0.00017735,2]
[327735796,1716406243828,-500.0,0.00017735,2]
[327735797,1716406243838,-500.0,0.00017735,2]
[327735798,1716406243848,-500.0,0.00017735,2]
[327735799,1716406243857,-500.0,0.00017735,2]
[327735800,1716406243867,-500.0,0.00017735,2]
[327735801,1716406243877,-500.0,0.00017735,2]
[327735802,1716406243887,-500.0,0.00017735,2]
[327735803,1716406243897,-500.0,0.00017735,2]
[327735804,1716406243908,-500.0,0.00017735,2]
[327735805,1716406243918,-500.0,0.00017735,2]
[327735806,1716406243927,-500.0,0.00017735,2]
[327735807,1716406243937,-500.0,0.00017735,2]
[327735808,1716406243947,-500.0,0.00017735,2]
[327735809,1716406243956,-500.0,0.00017735,2]
[327735810,1716406243966,-500.0,0.00017735,2]
[327735811,1716406243975,-500.0,0.00017735,2]
[327735813,1716406243985,-500.0,0.00017735,2]
[327735815,1716406243995,-500.0,0.00017735,2]
[327735817,1716406244004,-500.0,0.00017735,2]
[327735819,1716406244014,-500.0,0.00017735,2]
[327735821,1716406244023,-500.0,0.00017735,2]
[327735822,1716406244035,-500.0,0.00017735,2]
[327735823,1716406244044,-500.0,0.00017735,2]
[327735824,1716406244056,-500.0,0.00017735,2]
[327735825,1716406244066,-500.0,0.00017735,2]
[327735826,1716406244075,-500.0,0.00017735,2]
[327735827,1716406244085,-500.0,0.00017735,2]
[327735828,1716406244095,-500.0,0.00017735,2]
[327735829,1716406244104,-500.0,0.00017735,2]
[327735830,1716406244115,-500.0,0.00017735,2]
[327735831,1716406244125,-167.0,0.00017791,2]
[327735832,1716406244135,-5608.93395099,0.000179,2]
[327735833,1716406244145,-212.92593445,0.000179,2]
[327735834,1716406244154,-167.0,0.00017921,2]
[327735835,1716406244165,-1555.7019619,0.00018,2]
[327735836,1716406244175,-1109.20164795,0.00018,2]
[327735837,1716406244185,-158.43327398,0.00018,2]
[327735838,1716406244196,-1154.4750298,0.00018,2]
[327735839,1716406244205,-1572.640258,0.00018082,2]
[327735840,1716406244215,-1045.72754486,0.00018099,5]
[327735841,1716406244226,-1659.29372982,0.000181,2]
[327735842,1716406244235,-859.0,0.000183,2]
[327735843,1716406244246,-5803.0,0.000183,2]
[327735844,1716406244256,-1267.21,0.00018329,2]
[327735845,1716406244265,-321.50938792,0.000184,2]
[327735846,1716406244275,-167.0,0.00018444,2]
[327735847,1716406244285,-167.0,0.00018444,2]
[327735848,1716406244295,-151.06,0.00018507,2]
[327735849,1716406244307,-214.0,0.00018693,2]
[327735850,1716406244317,-4744.5584,0.0001873,2]
[327735851,1716406244326,-270.98840454,0.0001873,2]
[327735852,1716406244336,-1643.0,0.0001883,2]
[327735853,1716406244346,-1263.0,0.0001883,2]
[327735854,1716406244357,-1225.0,0.0001883,2]
[327735855,1716406244367,-613.0,0.0001883,2]
[327735856,1716406244381,-193.654,0.0001883,2]
[327735857,1716406244391,-809.0,0.0001883,2]
[327735858,1716406244401,-442.666,0.0001883,2]
[327735859,1716406244412,-150.385,0.0001883,2]
[327735860,1716406244423,-582.457,0.0001883,2]
[327735861,1716406244433,-247.953,0.0001883,2]
[327735862,1716406244445,-226.0,0.0001883,2]
[327735863,1716406244456,-2395.0,0.0001883,2]
[327735864,1716406244466,-1649.0,0.0001883,2]
[327735865,1716406244476,-204.9,0.0001883,2]
[327735866,1716406244487,-3179.295,0.0001883,2]
[327735867,1716406244497,-1150.919,0.0001883,2]
[327735868,1716406244507,-289.0,0.0001883,2]
[327735869,1716406244517,-974.092,0.0001883,2]
[327735870,1716406244528,-5759.0,0.0001883,2]
[327735871,1716406244538,-5134.0,0.0001883,2]
[327735872,1716406244548,-1465.0,0.0001883,2]
[327735873,1716406244560,-2161.0,0.0001883,2]
[327735874,1716406244570,-1400.0,0.0001883,2]
[327735875,1716406244581,-200.0,0.00018835,2]
[327735876,1716406244591,-168.69,0.00018891,2]
[327735877,1716406244601,-5608.93395099,0.000189,2]
[327735878,1716406244611,-1572.640258,0.00018904,2]
[327735879,1716406244622,-840.0,0.00018928,2]
[327735880,1716406244632,-410.39631753,0.00019,2]
[327735881,1716406244643,-1034.47089833,0.00019,2]
[327735882,1716406244653,-151.0,0.00019101,3]
[327735883,1716406244664,-151.0,0.00019101,2]
[327735884,1716406244674,-367.04733121,0.00019178,2]
[327735885,1716406244684,-500.0,0.00019178,2]
[327735886,1716406244695,-253.27705447,0.00019178,2]
[327735887,1716406244705,-901.83,0.00019178,2]
[327735888,1716406244716,-7753.23756689,0.000192,2]
[327735889,1716406244726,-3881.14394197,0.000192,2]
[327735890,1716406244737,-221.19,0.00019204,2]
[327735891,1716406244748,-150.0,0.0001939,2]
[327735892,1716406244758,-849.0,0.0001939,2]
[327735893,1716406244768,-163.54,0.0001939,2]
[327735894,1716406244779,-150.0,0.0001939,2]
[327735895,1716406244789,-163.54,0.0001939,2]
[327735896,1716406244800,-163.54,0.0001939,2]
[327735897,1716406244814,-150.0,0.0001939,2]
[327735898,1716406244825,-150.0,0.0001939,2]
[327735899,1716406244835,-301.35,0.0001939,2]
[327735900,1716406244851,-150.0,0.0001939,2]
[327735901,1716406244862,-163.54,0.0001939,2]
[327735902,1716406244874,-150.0,0.0001939,2]
[327735903,1716406244885,-163.54,0.0001939,2]
[327735904,1716406244896,-163.54,0.0001939,2]
[327735905,1716406244907,-420.93,0.0001939,2]
[327735906,1716406244917,-163.54,0.0001939,2]
[327735907,1716406244928,-420.93,0.0001939,2]
[327735908,1716406244939,-163.54,0.0001939,2]
[327735909,1716406244949,-420.93,0.0001939,2]
[327735910,1716406244959,-420.93,0.0001939,2]
[327735911,1716406244969,-524.28,0.0001939,2]
[327735912,1716406244981,-420.93,0.0001939,2]
[327735913,1716406244992,-418.71,0.0001939,2]
[327735914,1716406245002,-3887.3546904,0.00019642,2]
[327735915,1716406245013,-156.07914669,0.00019652,2]
[327735916,1716406245024,-1572.640258,0.00019726,2]
[327735917,1716406245035,-32772.58117485,0.000199,3]
[327735918,1716406245046,-5608.93395099,0.000199,2]
[327735919,1716406245060,-172.24560322,0.000199,2]
[327735920,1716406245072,-383.6,0.00019922,2]
[327735921,1716406245083,-627.95805638,0.0002,2]
[327735922,1716406245094,-5186.20094472,0.0002,2]
[327735923,1716406245106,-155.0,0.0002,2]
[327735924,1716406245117,-11046.34231626,0.0002,2]
[327735925,1716406245128,-4802.19535607,0.0002,4]
[327735926,1716406245140,-155.0,0.0002,2]
[327735927,1716406245151,-1263.30642158,0.0002,2]
[327735928,1716406245317,-6239.63008206,0.0002,2]
[327735929,1716406245328,-1773.05966905,0.0002,2]
[327735930,1716406245339,-862.31038971,0.0002,2]
[327735931,1716406245351,-155.0,0.0002,2]
[327735932,1716406245362,-344.0,0.0002,2]
[327735933,1716406245374,-270.98840453,0.00020023,2]
[327735934,1716406245385,-2975.07474974,0.0002009,2]
[327735935,1716406245395,-151.0,0.00020129,2]
[327735936,1716406245407,-524.28,0.00020212,2]
[327735937,1716406245418,-523.17,0.00020212,2]
[327735938,1716406245428,-212.92593445,0.000204,2]
[327735939,1716406245440,-364.37,0.00020447,2]
[327735940,1716406245453,-212.0,0.00020471,2]
[327735941,1716406245463,-254.313,0.00020471,2]
[327735942,1716406245473,-161.0,0.00020471,2]
[327735943,1716406245483,-161.789,0.00020471,2]
[327735944,1716406245493,-258.468,0.00020471,2]
[327735945,1716406245503,-194.617,0.00020471,2]
[327735946,1716406245513,-263.0,0.00020471,2]
[327735947,1716406245524,-285.153,0.00020471,2]
[327735948,1716406245533,-200.0,0.00020471,2]
[327735949,1716406245543,-273.671,0.00020471,2]
[327735950,1716406245553,-163.114,0.00020471,2]
[327735951,1716406245565,-181.0,0.00020471,2]
[327735952,1716406245574,-223.556,0.00020471,2]
[327735953,1716406245585,-235.498,0.00020471,2]
[327735954,1716406245594,-150.204,0.00020471,2]
[327735955,1716406245606,-150.0,0.000205,2]
[327735956,1716406245616,-500.0,0.00020546,2]
[327735957,1716406245625,-1400.0,0.00020546,2]
[327735958,1716406245635,-500.0,0.00020546,2]
[327735959,1716406245644,-1200.0,0.00020546,2]
[327735960,1716406245654,-1572.640258,0.00020548,2]
[327735961,1716406245664,-170.15,0.00020548,2]
[327735962,1716406245674,-151.97,0.00020807,2]
[327735963,1716406245683,-5608.93395099,0.000209,2]
[327735964,1716406245693,-151.0,0.000209,2]
[327735965,1716406245703,-151.0,0.000209,2]
[327735966,1716406245713,-717.9371715,0.00021,2]
[327735967,1716406245724,-1750.0,0.00021,2]
[327735968,1716406245735,-150.0,0.00021,2]
[327735969,1716406245744,-1400.0,0.00021094,2]
[327735970,1716406245754,-1200.0,0.00021094,2]
[327735971,1716406245764,-270.98840453,0.00021315,2]
[327735972,1716406245774,-1572.640258,0.0002137,2]
[327735973,1716406245784,-150.0,0.000215,3]
[327735974,1716406245793,-151.0,0.00021642,2]
[327735975,1716406245803,-151.0,0.00021642,2]
[327735976,1716406245815,-151.0,0.00021642,2]
[327735977,1716406245824,-151.0,0.00021642,2]
[327735978,1716406245834,-153.531182,0.00021642,2]
[327735979,1716406245844,-151.0,0.00021642,2]
[327735980,1716406245853,-249.78757,0.00021642,2]
[327735981,1716406245863,-151.0,0.00021642,2]
[327735982,1716406245873,-151.0,0.00021642,2]
[327735983,1716406245882,-151.0,0.00021642,2]
[327735984,1716406245892,-151.0,0.00021642,2]
[327735985,1716406245902,-151.0,0.00021642,2]
[327735986,1716406245911,-151.0,0.00021642,2]
[327735987,1716406245921,-151.0,0.00021642,2]
[327735988,1716406245932,-151.0,0.00021642,2]
[327735989,1716406245942,-151.0,0.00021642,2]
[327735990,1716406245952,-188.679588,0.00021642,2]
[327735991,1716406245962,-188.679588,0.00021642,2]
[327735992,1716406245972,-151.0,0.00021642,2]
[327735993,1716406245981,-151.0,0.00021642,2]
[327735994,1716406245992,-151.0,0.00021642,2]
[327735995,1716406246001,-151.0,0.00021642,2]
[327735996,1716406246011,-267.142965,0.00021642,2]
[327735997,1716406246021,-267.142965,0.00021642,2]
[327735998,1716406246031,-215.887237,0.00021642,2]
[327735999,1716406246040,-215.887237,0.00021642,2]
[327736000,1716406246050,-152.895992,0.00021642,2]
[327736001,1716406246062,-386.129647,0.00021642,2]
[327736002,1716406246072,-386.129647,0.00021642,2]
[327736003,1716406246082,-151.0,0.00021642,2]
[327736004,1716406246092,-2155.158606,0.00021642,2]
[327736005,1716406246103,-500.0,0.00021642,2]
[327736006,1716406246113,-500.0,0.00021642,2]
[327736007,1716406246123,-1400.0,0.00021642,2]
[327736008,1716406246132,-1200.0,0.00021642,2]
[327736009,1716406246142,-1643.0,0.0002183,2]
[327736010,1716406246152,-1263.0,0.0002183,2]
[327736011,1716406246162,-1225.0,0.0002183,2]
[327736012,1716406246172,-613.0,0.0002183,2]
[327736013,1716406246181,-164.0,0.0002183,2]
[327736014,1716406246191,-809.0,0.0002183,2]
[327736015,1716406246201,-439.0,0.0002183,2]
[327736016,1716406246211,-445.0,0.0002183,2]
[327736017,1716406246221,-150.0,0.0002183,2]
[327736018,1716406246231,-215.0,0.0002183,2]
[327736019,1716406246241,-2395.0,0.0002183,2]
[327736020,1716406246250,-1649.0,0.0002183,2]
[327736021,1716406246259,-3162.0,0.0002183,2]
[327736022,1716406246269,-1137.0,0.0002183,2]
[327736023,1716406246279,-289.0,0.0002183,2]
[327736024,1716406246289,-974.0,0.0002183,2]
[327736025,1716406246298,-3524.798,0.0002183,2]
[327736026,1716406246310,-4283.35,0.0002183,2]
[327736027,1716406246320,-1053.222,0.0002183,2]
[327736028,1716406246330,-2161.0,0.0002183,2]
[327736029,1716406246340,-1400.0,0.0002183,2]
[327736030,1716406246350,-151.0,0.0002183,2]
[327736031,1716406246365,-153.691089,0.0002183,2]
[327736032,1716406246375,-151.0,0.0002183,2]
[327736033,1716406246385,-151.0,0.0002183,2]
[327736034,1716406246395,-151.0,0.0002183,2]
[327736035,1716406246405,-151.382306,0.0002183,2]
[327736036,1716406246416,-153.000134,0.0002183,2]
[327736037,1716406246429,-151.0,0.0002183,2]
[327736038,1716406246440,-250.442748,0.0002183,2]
[327736039,1716406246450,-151.0,0.0002183,2]
[327736040,1716406246460,-151.0,0.0002183,2]
[327736041,1716406246470,-233.646404,0.0002183,2]
[327736042,1716406246480,-233.646404,0.0002183,2]
[327736043,1716406246489,-1500.0,0.000219,7]
[327736044,1716406246499,-6771.4801469,0.000219,2]
[327736045,1716406246509,-5608.93395099,0.000219,2]
[327736046,1716406246522,-1000.0,0.000219,2]
[327736047,1716406246532,-1412.44,0.00021918,2]
[327736048,1716406246541,-163.86,0.00021918,2]
[327736049,1716406246551,-2000.0,0.00021918,2]
[327736050,1716406246563,-763.07,0.00021918,2]
[327736051,1716406246573,-151.0,0.00021918,2]
[327736052,1716406246583,-201.23696978,0.00021918,7]
[327736053,1716406246593,-603.4059226,0.00022,3]
[327736054,1716406246603,-500.0,0.00022,2]
[327736055,1716406246612,-787.61802861,0.00022,2]
[327736056,1716406246623,-150.0,0.00022,3]
[327736057,1716406246632,-1000.0,0.00022011,2]
[327736058,1716406246642,-169.18135281,0.00022025,2]
[327736059,1716406246651,-165.06599144,0.00022042,2]
[327736060,1716406246661,-1112.77602058,0.00022064,2]
[327736061,1716406246670,-1112.77602058,0.00022082,2]
[327736062,1716406246680,-383.6,0.00022185,2]
[327736063,1716406246689,-300.61,0.0002219,2]
[327736064,1716406246699,-1400.0,0.0002219,2]
[327736065,1716406246708,-1200.0,0.0002219,2]
[327736066,1716406246718,-1572.640258,0.00022192,2]
[327736067,1716406246728,-1112.77602058,0.00022249,2]
[327736068,1716406246739,-391.88137859,0.00022297,2]
[327736069,1716406246748,-6335.483947,0.00022312,2]
[327736070,1716406246758,-1495.936157,0.00022312,2]
[327736071,1716406246768,-671.594503,0.00022312,2]
[327736072,1716406246778,-1601.304016,0.00022312,2]
[327736073,1716406246787,-418.441236,0.00022312,2]
[327736074,1716406246797,-216.461125,0.00022312,2]
[327736075,1716406246807,-11630.388086,0.00022312,2]
[327736076,1716406246816,-234.609182,0.00022312,2]
[327736077,1716406246826,-154.230313,0.00022312,2]
[327736078,1716406246836,-208.41694,0.00022312,2]
[327736079,1716406246846,-766.769468,0.00022312,2]
[327736080,1716406246855,-150.887097,0.00022312,2]
[327736081,1716406246865,-17445.58213,0.00022312,2]
[327736082,1716406246876,-187.687345,0.00022312,2]
[327736083,1716406246885,-312.62541,0.00022312,2]
[327736084,1716406246895,-185.076375,0.00022312,2]
[327736085,1716406246905,-1150.154201,0.00022312,2]
[327736086,1716406246916,-167.486043,0.00022312,2]
[327736087,1716406246927,-201.619636,0.00022312,2]
[327736088,1716406246937,-209.28999,0.00022312,2]
[327736089,1716406246946,-155.24107704,0.00022373,2]
[327736090,1716406246956,-547.45858614,0.000224,2]
[327736091,1716406246966,-391.88137859,0.0002243,2]
[327736092,1716406246975,-152.71251445,0.0002246,2]
[327736093,1716406246985,-10640.10339988,0.000225,2]
[327736094,1716406246994,-150.0,0.000225,3]
[327736095,1716406247004,-152.71251445,0.00022505,2]
[327736096,1716406247013,-176.466675,0.00022507,2]
[327736097,1716406247023,-175.064598,0.00022507,2]
[327736098,1716406247032,-155.24107704,0.00022562,2]
[327736099,1716406247042,-153.23677825,0.00022591,2]
[327736100,1716406247052,-6335.483947,0.00022591,2]
[327736101,1716406247064,-1495.936157,0.00022591,2]
[327736102,1716406247073,-671.594503,0.00022591,2]
[327736103,1716406247083,-1601.304016,0.00022591,2]
[327736104,1716406247091,-418.441236,0.00022591,2]
[327736105,1716406247100,-216.461125,0.00022591,2]
[327736106,1716406247109,-11630.388086,0.00022591,2]
[327736107,1716406247119,-208.41694,0.00022591,2]
[327736108,1716406247129,-766.769468,0.00022591,2]
[327736109,1716406247139,-150.887097,0.00022591,2]
[327736110,1716406247148,-17445.58213,0.00022591,2]
[327736111,1716406247158,-187.687345,0.00022591,2]
[327736112,1716406247168,-312.62541,0.00022591,2]
[327736113,1716406247177,-185.076375,0.00022591,2]
[327736114,1716406247187,-1150.154201,0.00022591,2]
[327736115,1716406247197,-2200.0,0.000226,8]
[327736116,1716406247207,-270.98840453,0.00022608,2]
[327736117,1716406247217,-168.19868843,0.00022621,2]
[327736118,1716406247227,-159.03794819,0.00022661,2]
[327736119,1716406247237,-167.49990035,0.00022666,2]
[327736120,1716406247247,-155.24107704,0.00022671,2]
[327736121,1716406247257,-154.230313,0.00022684,2]
[327736122,1716406247267,-250.76858003,0.00022688,2]
[327736123,1716406247277,-250.76858003,0.00022692,2]
[327736124,1716406247287,-3000.0,0.000227,8]
[327736125,1716406247297,-391.88137859,0.00022709,2]
[327736126,1716406247310,-154.30319547,0.00022713,2]
[327736127,1716406247320,-159.51716851,0.00022723,2]
[327736128,1716406247330,-500.0,0.00022738,2]
[327736129,1716406247341,-500.0,0.00022738,2]
[327736130,1716406247351,-1400.0,0.00022738,2]
[327736131,1716406247362,-1200.0,0.00022738,2]
[327736132,1716406247373,-391.88137859,0.00022773,2]
[327736133,1716406247383,-154.30319547,0.00022788,2]
[327736134,1716406247392,-176.466675,0.00022788,2]
[327736135,1716406247402,-155.24107704,0.00022793,2]
[327736136,1716406247412,-3700.0,0.000228,8]
[327736137,1716406247421,-1112.77602058,0.00022832,2]
[327736138,1716406247432,-151.79535,0.0002287,7]
[327736139,1716406247443,-160.847574,0.0002287,7]
[327736140,1716406247455,-151.0,0.0002287,7]
[327736141,1716406247466,-151.0,0.0002287,7]
[327736142,1716406247476,-233.646404,0.0002287,7]
[327736143,1716406247486,-233.646404,0.0002287,7]
[327736144,1716406247495,-151.0,0.0002287,7]
[327736145,1716406247505,-151.0,0.0002287,7]
[327736146,1716406247514,-151.0,0.0002287,7]
[327736147,1716406247525,-151.0,0.0002287,7]
[327736148,1716406247536,-153.171505,0.0002287,7]
[327736149,1716406247545,-151.0,0.0002287,7]
[327736150,1716406247558,-151.0,0.0002287,7]
[327736151,1716406247568,-151.0,0.0002287,7]
[327736152,1716406247579,-151.542041,0.0002287,7]
[327736153,1716406247590,-151.0,0.0002287,7]
[327736154,1716406247600,-151.0,0.0002287,7]
[327736155,1716406247610,-151.0,0.0002287,7]
[327736156,1716406247620,-151.0,0.0002287,7]
[327736157,1716406247630,-151.0,0.0002287,7]
[327736158,1716406247640,-151.0,0.0002287,7]
[327736159,1716406247650,-151.0,0.0002287,7]
[327736160,1716406247660,-151.0,0.0002287,7]
[327736161,1716406247671,-151.0,0.0002287,7]
[327736162,1716406247680,-151.0,0.0002287,7]
[327736163,1716406247690,-151.0,0.0002287,7]
[327736164,1716406247700,-151.0,0.0002287,7]
[327736165,1716406247709,-151.0,0.0002287,7]
[327736166,1716406247718,-151.0,0.0002287,7]
[327736167,1716406247728,-152.803102,0.0002287,7]
[327736168,1716406247738,-151.0,0.0002287,7]
[327736169,1716406247748,-151.0,0.0002287,7]
[327736170,1716406247757,-151.0,0.0002287,7]
[327736171,1716406247767,-151.0,0.0002287,7]
[327736172,1716406247777,-189.289376,0.0002287,7]
[327736173,1716406247787,-237.740073,0.0002287,7]
[327736174,1716406247796,-158.948601,0.0002287,7]
[327736175,1716406247808,-151.0,0.0002287,7]
[327736176,1716406247817,-153.304161,0.0002287,7]
[327736177,1716406247827,-159.856773,0.0002287,7]
[327736178,1716406247837,-151.0,0.0002287,7]
[327736179,1716406247847,-300.371908,0.0002287,7]
[327736180,1716406247856,-300.371908,0.0002287,7]
[327736181,1716406247866,-157.324201,0.0002287,7]
[327736182,1716406247875,-151.713945,0.0002287,7]
[327736183,1716406247885,-151.0,0.0002287,7]
[327736184,1716406247895,-229.398464,0.0002287,7]
[327736185,1716406247904,-151.0,0.0002287,7]
[327736186,1716406247914,-151.0,0.0002287,7]
[327736187,1716406247924,-151.0,0.0002287,7]
[327736188,1716406247933,-188.679588,0.0002287,7]
[327736189,1716406248071,-188.679588,0.0002287,7]
[327736190,1716406248098,-151.0,0.0002287,7]
[327736191,1716406248108,-151.0,0.0002287,7]
[327736192,1716406248117,-151.0,0.0002287,7]
[327736193,1716406248127,-267.142965,0.0002287,7]
[327736194,1716406248136,-267.142965,0.0002287,7]
[327736195,1716406248145,-215.887237,0.0002287,7]